{"text_format":"1","workbook":"xlsx","n_sheets":8,"sheets":["1_Тит","2_осень","3_весна","4_УЧ-МЕТ","5_НИ(М)Р","6_НИРС. ОМР ","7_РВС ПК","8_ОРИП ОПВП"],"not_rendered":{"charts":0,"images":0,"macros":0,"external_links":0,"defined_names":7,"comments":0,"pivot_tables":0},"unopened":[],"bounds":{"document_bytes":16777216,"sheet_cells":100000,"rows_first":2000,"rows_last":500,"rows_between":2000,"halvings":0,"cell_chars":16384,"cell_head_chars":4096},"cells_cut":0,"cells_raw":0,"read":"whole","date_system":"1900"}

{"sheet":"1_Тит","index":0,"n_rows":39,"n_cols":6,"rows_kept":39,"cut":false,"hidden":false,"merged":[[54,3,54,5],[3,0,3,8],[26,1,26,7],[0,0,0,8],[1,1,1,7],[2,1,2,7],[48,3,48,5],[37,0,37,2],[13,2,13,7],[25,2,25,6],[36,0,36,2],[21,1,21,7],[22,1,22,7],[7,4,7,8]]}
[]
[]
[]
[]
[]
[]
[]
[]
[]
["_________________________",null,null,null,null,"_________________________"]
[]
[]
[]
[]
[]
[]
[]
[]
[]
[]
[]
[]
[]
[]
[]
[]
[]
["         "]
["       "]
[]
[]
[]
[]
[]
[]
[]
[]
[]
[" ",null,null,"________________________"]

{"sheet":"2_осень","index":1,"n_rows":55,"n_cols":23,"rows_kept":55,"cut":false,"hidden":false,"merged":[[0,0,0,4],[0,5,0,22],[1,1,2,1],[47,2,48,2],[49,1,53,1],[1,5,1,21],[46,1,48,1],[1,22,2,22],[1,2,2,2],[1,3,1,4],[1,0,2,0],[3,0,54,0]]}
["I. УЧЕБНАЯ РАБОТА ПРЕПОДАВАТЕЛЯ",null,null,null,null,"I. УЧЕБНАЯ РАБОТА ПРЕПОДАВАТЕЛЯ"]
[null,"Наименование дисциплины","Индекс учебной группы","Количество",null,"Количество часов по видам занятий",null,null,null,null,null,null,null,null,null,null,null,null,null,null,null,null,"Отметка зав.каф. О выпролнении нагрузки"]
[null,null,null,"студентов","аспирантов","лекции","практические и семинарские занятия","лабораторные работы","консультации","зачеты","экзамены","КП (КР)","руководство практикой","ДП","ГЭК","рецензирован. к/р заочников","РГР, ККР (Тип.расчеты)","руководство аспирантами","проверка к/р","индивидуаль-ные занятия","прочие","ИТОГО"]
["ОСЕННИЙ СЕМЕСТР"]
[]
[]
[]
[]
[]
[]
[null,null,null,null,null,null,null,null,null,null,null,null,null,null,null,null,null,null,null,null,null,{"$f":"SUM(F11:U11)","v":0}]
[null,null,null,null,null,null,null,null,null,null,null,null,null,null,null,null,null,null,null,null,null,0]
[null,null,null,null,null,null,null,null,null,null,null,null,null,null,null,null,null,null,null,null,null,0]
[null,null,null,null,null,null,null,null,null,null,null,null,null,null,null,null,null,null,null,null,null,0]
[null,null,null,null,null,null,null,null,null,null,null,null,null,null,null,null,null,null,null,null,null,0]
[null,null,null,null,null,null,null,null,null,null,null,null,null,null,null,null,null,null,null,null,null,0]
[null,null,null,null,null,null,null,null,null,null,null,null,null,null,null,null,null,null,null,null,null,0]
[null,null,null,null,null,null,null,null,null,null,null,null,null,null,null,null,null,null,null,null,null,0]
[null,null,null,null,null,null,null,null,null,null,null,null,null,null,null,null,null,null,null,null,null,0]
[null,null,null,null,null,null,null,null,null,null,null,null,null,null,null,null,null,null,null,null,null,0]
[null,null,null,null,null,null,null,null,null,null,null,null,null,null,null,null,null,null,null,null,null,0]
[null,null,null,null,null,null,null,null,null,null,null,null,null,null,null,null,null,null,null,null,null,0]
[null,null,null,null,null,null,null,null,null,null,null,null,null,null,null,null,null,null,null,null,null,0]
[null,null,null,null,null,null,null,null,null,null,null,null,null,null,null,null,null,null,null,null,null,0]
[null,null,null,null,null,null,null,null,null,null,null,null,null,null,null,null,null,null,null,null,null,0]
[null,null,null,null,null,null,null,null,null,null,null,null,null,null,null,null,null,null,null,null,null,0]
[null,null,null,null,null,null,null,null,null,null,null,null,null,null,null,null,null,null,null,null,null,0]
[null,null,null,null,null,null,null,null,null,null,null,null,null,null,null,null,null,null,null,null,null,0]
[null,null,null,null,null,null,null,null,null,null,null,null,null,null,null,null,null,null,null,null,null,0]
[null,null,null,null,null,null,null,null,null,null,null,null,null,null,null,null,null,null,null,null,null,0]
[null,null,null,null,null,null,null,null,null,null,null,null,null,null,null,null,null,null,null,null,null,0]
[null,null,null,null,null,null,null,null,null,null,null,null,null,null,null,null,null,null,null,null,null,{"$f":"SUM(F32:U32)","v":0}]
[null,null,null,null,null,null,null,null,null,null,null,null,null,null,null,null,null,null,null,null,null,{"$f":"SUM(F33:U33)","v":0}]
[null,null,null,null,null,null,null,null,null,null,null,null,null,null,null,null,null,null,null,null,null,{"$f":"SUM(F34:U34)","v":0}]
[null,null,null,null,null,null,null,null,null,null,null,null,null,null,null,null,null,null,null,null,null,0]
[null,null,null,null,null,null,null,null,null,null,null,null,null,null,null,null,null,null,null,null,null,0]
[null,null,null,null,null,null,null,null,null,null,null,null,null,null,null,null,null,null,null,null,null,0]
[null,null,null,null,null,null,null,null,null,null,null,null,null,null,null,null,null,null,null,null,null,0]
[null,null,null,null,null,null,null,null,null,null,null,null,null,null,null,null,null,null,null,null,null,0]
[null,null,null,null,null,null,null,null,null,null,null,null,null,null,null,null,null,null,null,null,null,0]
[null,null,null,null,null,null,null,null,null,null,null,null,null,null,null,null,null,null,null,null,null,0]
[null,null,null,null,null,null,null,null,null,null,null,null,null,null,null,null,null,null,null,null,null,0]
[null,null,null,null,null,null,null,null,null,null,null,null,null,null,null,null,null,null,null,null,null,0]
[null,null,null,null,null,null,null,null,null,null,null,null,null,null,null,null,null,null,null,null,null,0]
[null,null,null,null,null,null,null,null,null,null,null,null,null,null,null,null,null,null,null,null,null,0]
[null,null,null,null,null,null,null,null,null,null,null,null,null,null,null,null,null,null,null,null,null,0]
[null,"Всего за семестр","План",null,null,{"$f":"SUM(F4:F46)","v":0},0,0,0,0,0,0,0,0,0,0,0,0,0,0,0,{"$f":"SUM(F47:U47)","v":0}]
[null,null,"Скоррект. план"]
[]
[null,"Фактическое выполнение по месяцам","сентябрь"]
[null,null,"октябрь"]
[null,null,"ноябрь"]
[null,null,"декабрь"]
[null,null,"январь"]
[null,"Фактическое выполнение за семестр"]

{"sheet":"3_весна","index":2,"n_rows":47,"n_cols":23,"rows_kept":47,"cut":false,"hidden":false,"merged":[[0,0,0,4],[0,5,0,22],[44,0,46,1],[3,0,43,0],[1,5,1,21],[38,1,42,1],[35,1,37,1],[1,0,2,0],[1,1,2,1],[1,2,2,2],[1,3,1,4],[36,2,37,2],[1,22,2,22]]}
["I. УЧЕБНАЯ РАБОТА ПРЕПОДАВАТЕЛЯ",null,null,null,null,"I. УЧЕБНАЯ РАБОТА ПРЕПОДАВАТЕЛЯ"]
[null,"Наименование дисциплины","Индекс учебной группы","Количество",null,"Количество часов по видам занятий",null,null,null,null,null,null,null,null,null,null,null,null,null,null,null,null,"Отметка зав.каф. О выпролнении нагрузки"]
[null,null,null,"студентов","аспирантов","лекции","практические и семинарские занятия","лабораторные работы","консультации","зачеты","экзамены","КП (КР)","руководство практикой","ДП","ГЭК, ГАК","рецензирован. к/р заочников","РГР, ККР (Тип.расчеты)","руководство аспирантами","проверка к/р","индивидуаль-ные занятия","Руководство кафедрой","ИТОГО"]
["ВЕСЕННИЙ СЕМЕСТР"]
[]
[]
[]
[]
[]
[]
[]
[]
[]
[]
[]
[]
[]
[]
[]
[null,null,null,null,null,null,null,null,null,null,null,null,null,null,null,null,null,null,null,null,null,{"$f":"SUM(F20:U20)","v":0}]
[null,null,null,null,null,null,null,null,null,null,null,null,null,null,null,null,null,null,null,null,null,0]
[null,null,null,null,null,null,null,null,null,null,null,null,null,null,null,null,null,null,null,null,null,0]
[null,null,null,null,null,null,null,null,null,null,null,null,null,null,null,null,null,null,null,null,null,0]
[null,null,null,null,null,null,null,null,null,null,null,null,null,null,null,null,null,null,null,null,null,0]
[null,null,null,null,null,null,null,null,null,null,null,null,null,null,null,null,null,null,null,null,null,0]
[null,null,null,null,null,null,null,null,null,null,null,null,null,null,null,null,null,null,null,null,null,0]
[null,null,null,null,null,null,null,null,null,null,null,null,null,null,null,null,null,null,null,null,null,0]
[null,null,null,null,null,null,null,null,null,null,null,null,null,null,null,null,null,null,null,null,null,0]
[null,null,null,null,null,null,null,null,null,null,null,null,null,null,null,null,null,null,null,null,null,0]
[null,null,null,null,null,null,null,null,null,null,null,null,null,null,null,null,null,null,null,null,null,0]
[null,null,null,null,null,null,null,null,null,null,null,null,null,null,null,null,null,null,null,null,null,0]
[null,null,null,null,null,null,null,null,null,null,null,null,null,null,null,null,null,null,null,null,null,0]
[null,null,null,null,null,null,null,null,null,null,null,null,null,null,null,null,null,null,null,null,null,0]
[null,null,null,null,null,null,null,null,null,null,null,null,null,null,null,null,null,null,null,null,null,0]
[null,null,null,null,null,null,null,null,null,null,null,null,null,null,null,null,null,null,null,null,null,0]
[null,"Всего за семестр","План",null,null,{"$f":"SUM(F4:F35)","v":0},{"$f":"SUM(G4:G35)","v":0},0,0,0,0,0,0,0,0,0,0,0,0,0,0,0]
[null,null,"Скоррект. план"]
[]
[null,"Фактическое выполнение по месяцам","февраль"]
[null,null,"март"]
[null,null,"апрель"]
[null,null,"май"]
[null,null,"июнь"]
[null,"Фактическое выполнение за семестр"]
["ИТОГО за учебный год",null,"План",null,null,null,null,null,null,null,null,null,null,null,null,null,null,null,null,null,null,{"$f":"SUM(V36,'2_осень'!V47)","v":0}]
[null,null,"Скоррект. план"]
[null,null,"Факт"]

{"sheet":"4_УЧ-МЕТ","index":3,"n_rows":149,"n_cols":15,"rows_kept":149,"cut":false,"hidden":false,"merged":[[60,0,60,2],[59,0,59,2],[32,0,32,5],[0,0,0,5],[4,0,4,5],[2,3,2,4],[2,5,3,5],[2,0,3,0],[2,1,2,2],[31,0,31,2]]}
["II.  УЧЕБНО-МЕТОДИЧЕСКАЯ РАБОТА",null,null,null,null,null,null,"Осталось распределить",{"$f":"'1_Тит'!D38-'4_УЧ-МЕТ'!D61-'5_НИ(М)Р'!D61-'6_НИРС. ОМР '!C30-'6_НИРС. ОМР '!C60-'7_РВС ПК'!C18","v":0},{"$f":"DATE('1_Тит'!D24,9,1)","v":"1900-09-01"},{"$f":"DATE('1_Тит'!D24,12,31)","v":"1900-12-31"},{"$f":"DATE('1_Тит'!F24,2,1)","v":"1900-02-01"},{"$f":"DATE('1_Тит'!F24,6,30)","v":"1900-06-30"},"час",{"$f":"IF(I1<0,\"Превышение !!!\",0)","v":0}]
[]
["Наименование работы","Срок выполнения",null,"Затраты времени, час",null,"Отметка зав.каф.о выполнении"]
[null,"начало","конец","план","факт."]
["I.  ОСЕННИЙ СЕМЕСТР"]
["Подготовка к практическим занятиям по дисциплине",null,null,null,null,null,null,{"$f":"LOOKUP(A6,$A$99:$A$149,$B$99:$B$149)","v":"2-5 часов на 1 час занятий по впервые читаемой дисциплине, 0,5-1 часов на 1 час занятий по повторно читаемой дисциплине. (дублирование занятий в потоках и группах не учитывается)"}]
[]
[]
["Переработка  действующих рабочих программ",null,null,null,null,null,null,{"$f":"LOOKUP(A9,$A$99:$A$149,$B$99:$B$149)","v":"до 5 часов на 1 программу"}]
[]
[]
["Переработка  МУ к Практ.занятиям",null,null,null,null,null,null,{"$f":"LOOKUP(A12,$A$99:$A$149,$B$99:$B$149)","v":"до 20 часов на один печатный лист"}]
[]
[]
["Разработка тестовых заданий для контроля знаний студентов",null,null,null,null,null,null,{"$f":"LOOKUP(A15,$A$99:$A$149,$B$99:$B$149)","v":"2 часа на 10 тестовых заданий"}]
[]
[]
["Переработка экзаменационных билетов",null,null,null,null,null,null,{"$f":"LOOKUP(A18,$A$99:$A$149,$B$99:$B$149)","v":"до 2-х часов на один комплект билетов"}]
[]
[]
["Подготовка к лекционным занятиям по дисциплине",null,null,null,null,null,null,{"$f":"LOOKUP(A21,$A$99:$A$149,$B$99:$B$149)","v":"2-5 часов на 1 час занятий по впервые читаемой дисциплине, 0,5-1 часов на 1 час занятий по повторно читаемой дисциплине. (дублирование занятий в потоках и группах не учитывается)"}]
[]
[]
["Составление экзаменационных билетов без задач",null,null,null,null,null,null,{"$f":"LOOKUP(A24,$A$99:$A$149,$B$99:$B$149)","v":"до 0,3 часа на один билет"}]
[]
[]
["Разработка программ для Метод документации  для ДОТ",null,null,null,null,null,null,{"$f":"LOOKUP(A27,$A$99:$A$149,$B$99:$B$149)","v":"от 50 до 300 час за 1 п.л. или 80 кБт файла"}]
[]
[]
[0,null,{"$f":"IF(A30=0,\" \",$K$1)","v":" "},null,null,null,null,{"$f":"LOOKUP(A30,$A$99:$A$149,$B$99:$B$149)","v":0}]
[]
["Итого за семестр",null,null,{"$f":"SUM(D6:D31)","v":0}]
["II. ВЕСЕННИЙ СЕМЕСТР"]
["Подготовка раздаточного материала для презентаций",null,null,null,null,null,null,{"$f":"LOOKUP(A34,$A$99:$A$149,$B$99:$B$149)","v":"по согласованию с зав. кафедрой"}]
[]
[]
[]
[]
["Проведение олимпиад",null,null,null,null,null,null,{"$f":"LOOKUP(A39,$A$99:$A$149,$B$99:$B$149)","v":"4 часа на 1 тур"}]
[]
[]
["Разработка МУ к выполнению КР (КП)",null,null,null,null,null,null,{"$f":"LOOKUP(A42,$A$99:$A$149,$B$99:$B$149)","v":"Для внутривузовского издания - 20-60 часов на один печатный лист"}]
[]
[]
[]
[]
["Составление экзаменационных билетов без задач",null,null,null,null,null,null,{"$f":"LOOKUP(A47,$A$99:$A$149,$B$99:$B$149)","v":"до 0,3 часа на один билет"}]
[]
[]
["Разработка МУ к выполнению КР (КП)",null,null,null,null,null,null,{"$f":"LOOKUP(A50,$A$99:$A$149,$B$99:$B$149)","v":"Для внутривузовского издания - 20-60 часов на один печатный лист"}]
[]
[]
["Составление заданий для КР и КП по спец дисциплине",null,null,null,null,null,null,{"$f":"LOOKUP(A53,$A$99:$A$149,$B$99:$B$149)","v":"до 0,5 часа на одно задание"}]
[]
[]
["Разработка тестовых заданий для контроля знаний студентов",null,null,null,null,null,null,{"$f":"LOOKUP(A56,$A$99:$A$149,$B$99:$B$149)","v":"2 часа на 10 тестовых заданий"}]
[]
[0,null,null,null,null,null,null,{"$f":"LOOKUP(A58,$A$99:$A$149,$B$99:$B$149)","v":0}]
[]
["Итого за семестр",null,null,{"$f":"SUM(D34:D59)","v":0}]
["Итого за год",null,null,{"$f":"D60+D32","v":0}]
[]
[]
[]
[]
[]
[]
[]
[]
[]
[]
[]
[]
[]
[]
[]
[]
[]
[]
[]
[]
[]
[]
[]
[]
[]
[]
[]
[]
[]
[]
[]
[]
[]
[]
[]
[]
["Виды Работ","Примерные нормы времени"]
[0,"00:00:00"]
["Корректировка учебного плана по направлению","20-50 часов на один план"]
["Корректировка учебного плана по специальности","20-50 часов на один план"]
["Модернизация действующих Лаб.работ","10-60 часов по согласованию с зав. кафедрой"]
["Нормоконтроль курсовых проектов, работ и ВКР","0,2 часа на 1 лист"]
["Переработка  действующих рабочих программ","до 5 часов на 1 программу"]
["Переработка  МУ к Практ.занятиям","до 20 часов на один печатный лист"]
["Переработка МУ по ВКР","до 20 часов на один печатный лист"]
["Переработка МУ по КР(КП)","до 20 часов на один печатный лист"]
["Переработка МУ по Лаб.работам","до 20 часов на один печатный лист"]
["Переработка экзаменационных билетов","до 2-х часов на один комплект билетов"]
["Подготовка  видео – фильмов для аудиторных занятий","по согласованию с зав. кафедрой"]
["Подготовка  слайдов для аудиторных занятий","по согласованию с зав. кафедрой"]
["Подготовка диапозитивов для аудиторных занятий","по согласованию с зав. кафедрой"]
["Подготовка диафильмов для аудиторных занятий","по согласованию с зав. кафедрой"]
["Подготовка к лекционным занятиям по дисциплине","2-5 часов на 1 час занятий по впервые читаемой дисциплине, 0,5-1 часов на 1 час занятий по повторно читаемой дисциплине. (дублирование занятий в потоках и группах не учитывается)"]
["Подготовка к практическим занятиям по дисциплине","2-5 часов на 1 час занятий по впервые читаемой дисциплине, 0,5-1 часов на 1 час занятий по повторно читаемой дисциплине. (дублирование занятий в потоках и группах не учитывается)"]
["Подготовка материалов для лицензирования направления","150 часов"]
["Подготовка материалов для лицензирования специальности","150 часов"]
["Подготовка презентаций для аудиторных занятий","по согласованию с зав. кафедрой"]
["Подготовка раздаточного материала для лекционных занятий","по согласованию с зав. кафедрой"]
["Подготовка раздаточного материала для практических занятий","по согласованию с зав. кафедрой"]
["Подготовка раздаточного материала для презентаций","по согласованию с зав. кафедрой"]
["Посещение занятий других преподавателей","по согласованию с зав. кафедрой (по утвержденному кафедральному графику взаимопосещений)"]
["Постановка новых Лаб.работ","10-60 часов по согласованию с зав. кафедрой"]
["Проведение олимпиад","4 часа на 1 тур"]
["Проверка олимпиадных работ","0,3 часа на 1 работу"]
["Работа в комиссии по приему КП и КР","по согласованию с зав. кафедрой ((для членов комиссии, назначенных распоряжением зав. Кафедрой)"]
["Разработка  демонстрационного плаката формата А1","до 5 часов на один плакат"]
["Разработка  рабочих программ по дисциплине","Подготовка материалов в эл-м виде  20-60 часов на один печатный лист"]
["Разработка заданий на расчетно-графические работы","по согласованию с зав. кафедрой"]
["Разработка конспектов лекций по дисциплине","Подготовка материалов в эл-м виде  20-60 часов на один печатный лист"]
["Разработка МУ к выполнению ВКР","Для внутривузовского издания - 20-60 часов на один печатный лист"]
["Разработка МУ к выполнению КР (КП)","Для внутривузовского издания - 20-60 часов на один печатный лист"]
["Разработка МУ к Лаб.работам","Для внутривузовского издания - 20-60 часов на один печатный лист"]
["Разработка МУ к практическим занятиям","Для внутривузовского издания - 20-60 часов на один печатный лист"]
["Разработка программ для АСС","от 50 до 300 час по решению кафедры"]
["Разработка программ для деловых игр","от 50 до 300 час по решению кафедры"]
["Разработка программ для Метод документации  для ДОТ","от 50 до 300 час за 1 п.л. или 80 кБт файла"]
["Разработка программ для САПР","от 50 до 300 час по решению кафедры"]
["Разработка программ для ЭВМ","от 50 до 300 час по решению кафедры"]
["Разработка тестовых заданий для контроля знаний студентов","2 часа на 10 тестовых заданий"]
["Разработка учебного плана для нового направления","до 150 часов на один план"]
["Разработка учебного плана по новой специальности","до 150 часов на один план"]
["Редактирование конспекта лекций","до 5 часов на один печатный лист"]
["Составление заданий для КР и КП по общетехн. дисциплине","до 1/3 часа на одно задание"]
["Составление заданий для КР и КП по спец дисциплине","до 0,5 часа на одно задание"]
["Составление заданий для олимпиад","2 часа на 1 вариант"]
["Составление новых заданий для контрольных работ","до 0,25 часа на один вариант задания"]
["Составление экзаменационных билетов без задач","до 0,3 часа на один билет"]
["Составление экзаменационных билетов с задачами","до 2 часа на один билет"]

{"sheet":"5_НИ(М)Р","index":4,"n_rows":144,"n_cols":15,"rows_kept":144,"cut":false,"hidden":false,"merged":[[59,0,59,2],[60,0,60,2],[32,0,32,5],[2,1,2,2],[2,3,2,4],[31,0,31,2],[0,0,0,5],[1,0,1,5],[4,0,4,5],[2,5,3,5],[2,0,3,0]]}
["III.  НАУЧНО-ИСЛЕДОВАТЕЛЬСКАЯ И НАУЧНО-МЕТОДИЧЕСКАЯ РАБОТА",null,null,null,null,null,null,"Осталось распределить",{"$f":"'4_УЧ-МЕТ'!$I$1","v":0},{"$f":"DATE('1_Тит'!D24,9,1)","v":"1900-09-01"},{"$f":"DATE('1_Тит'!D24,12,31)","v":"1900-12-31"},{"$f":"DATE('1_Тит'!F24,2,1)","v":"1900-02-01"},{"$f":"DATE('1_Тит'!F24,6,30)","v":"1900-06-30"},"час",{"$f":"'4_УЧ-МЕТ'!$O$1","v":0}]
["(по госбюджету)"]
["Наименование работы","Срок выполнения",null,"Затраты времени, час",null,"Отметка зав.каф.о выполнении"]
[null,"начало","конец","план","факт."]
["I.  ОСЕННИЙ СЕМЕСТР"]
["Выполнение госбюджетной Научно-Методической Работы",null,null,null,null,null,null,{"$f":"LOOKUP(A6,$A$99:$A$144,$B$99:$B$144)","v":"100 – 300 часов в год при условии, что преподаватель за нее не получает дополнительной оплаты"}]
[]
[]
["Написание и подготовка для издательства статьи",null,null,null,null,null,null,{"$f":"LOOKUP(A9,$A$99:$A$144,$B$99:$B$144)","v":"до 100  часов на 1 печ. Лист; депонированной - 50-70 часов за 1 печ.лист "}]
[]
[]
["Подготовка доклада на международную конференцию",null,null,null,null,null,null,{"$f":"LOOKUP(A12,$A$99:$A$144,$B$99:$B$144)","v":"до 30 часов на один доклад"}]
[]
[]
["Рецензирование диссертации",null,null,null,null,null,null,{"$f":"LOOKUP(A15,$A$99:$A$144,$B$99:$B$144)","v":"до 10 часов на один печатный лист рецензируемого материала"}]
[]
[]
["Написание и подготовка для издательства учебника",null,null,null,null,null,null,{"$f":"LOOKUP(A18,$A$99:$A$144,$B$99:$B$144)","v":"150-200 час на 1 печатный лист (без гонорара)"}]
[]
[]
["Подготовка документации к проведению внутреннего аудита",null,null,null,null,null,null,{"$f":"LOOKUP(A21,$A$99:$A$144,$B$99:$B$144)","v":"по согласованию с зав. кафедрой и руководством факультета, университета"}]
[]
[]
[0,{"$f":"IF(A24=0,\" \",$J$1)","v":" "},{"$f":"IF(A24=0,\" \",$K$1)","v":" "},null,null,null,null,{"$f":"LOOKUP(A24,$A$99:$A$144,$B$99:$B$144)","v":0}]
[]
[]
[0,{"$f":"IF(A27=0,\" \",$J$1)","v":" "},{"$f":"IF(A27=0,\" \",$K$1)","v":" "},null,null,null,null,{"$f":"LOOKUP(A27,$A$99:$A$144,$B$99:$B$144)","v":0}]
[]
[]
[0,{"$f":"IF(A30=0,\" \",$J$1)","v":" "},{"$f":"IF(A30=0,\" \",$K$1)","v":" "},null,null,null,null,{"$f":"LOOKUP(A30,$A$99:$A$144,$B$99:$B$144)","v":0}]
[]
["Итого за семестр",null,null,{"$f":"SUM(D6:D31)","v":0}]
["II. ВЕСЕННИЙ СЕМЕСТР"]
["Написание и подготовка для издательства статьи",null,null,null,null,null,null,{"$f":"LOOKUP(A34,$A$99:$A$144,$B$99:$B$144)","v":"до 100  часов на 1 печ. Лист; депонированной - 50-70 часов за 1 печ.лист "}]
[]
[]
["Выполнение госбюджетной Научно-Методической Работы",null,null,null,null,null,null,{"$f":"LOOKUP(A37,$A$99:$A$144,$B$99:$B$144)","v":"100 – 300 часов в год при условии, что преподаватель за нее не получает дополнительной оплаты"}]
[]
[]
["Написание и подготовка для издательства монографии",null,null,null,null,null,null,{"$f":"LOOKUP(A40,$A$99:$A$144,$B$99:$B$144)","v":"150-200 час на 1 печатный лист (без гонорара)"}]
[]
[]
[0,{"$f":"IF(A43=0,\" \",$L$1)","v":" "},{"$f":"IF(A43=0,\" \",$M$1)","v":" "},null,null,null,null,{"$f":"LOOKUP(A43,$A$99:$A$144,$B$99:$B$144)","v":0}]
[]
[]
[0,{"$f":"IF(A46=0,\" \",$L$1)","v":" "},{"$f":"IF(A46=0,\" \",$M$1)","v":" "},null,null,null,null,{"$f":"LOOKUP(A46,$A$99:$A$144,$B$99:$B$144)","v":0}]
[]
[]
[0,{"$f":"IF(A49=0,\" \",$L$1)","v":" "},{"$f":"IF(A49=0,\" \",$M$1)","v":" "},null,null,null,null,{"$f":"LOOKUP(A49,$A$99:$A$144,$B$99:$B$144)","v":0}]
[]
[]
[0,{"$f":"IF(A52=0,\" \",$L$1)","v":" "},{"$f":"IF(A52=0,\" \",$M$1)","v":" "},null,null,null,null,{"$f":"LOOKUP(A52,$A$99:$A$144,$B$99:$B$144)","v":0}]
[]
[]
[0,{"$f":"IF(A55=0,\" \",$L$1)","v":" "},{"$f":"IF(A55=0,\" \",$M$1)","v":" "},null,null,null,null,{"$f":"LOOKUP(A55,$A$99:$A$144,$B$99:$B$144)","v":0}]
[]
[]
[0,{"$f":"IF(A58=0,\" \",$L$1)","v":" "},{"$f":"IF(A58=0,\" \",$M$1)","v":" "},null,null,null,null,{"$f":"LOOKUP(A58,$A$99:$A$144,$B$99:$B$144)","v":0}]
[]
["Итого за семестр",null,null,{"$f":"SUM(D34:D59)","v":0}]
["Итого за год",null,null,{"$f":"D60+D32","v":0}]
[]
[]
[]
[]
[]
[]
[]
[]
[]
[]
[]
[]
[]
[]
[]
[]
[]
[]
[]
[]
[]
[]
[]
[]
[]
[]
[]
[]
[]
[]
[]
[]
[]
[]
[]
[]
["Виды работ","Примерные нормы времени"]
[0,"00:00:00"]
["Актуализация документации СМК","по согласованию с зав. кафедрой и руководством факультета, университета"]
["Выполнение госбюджетного договора о содружестве","100 – 300 часов в год при условии, что преподаватель за нее не получает дополнительной оплаты"]
["Выполнение госбюджетной Научно-Методической Работы","100 – 300 часов в год при условии, что преподаватель за нее не получает дополнительной оплаты"]
["Выполнение госбюджетной Научно-Технической Работы","100 – 300 часов в год при условии, что преподаватель за нее не получает дополнительной оплаты"]
["Выполнение научно-исследовательской работы","до 100 часов в год (работы по нефинансируемым договорам о научно-техническом сотрудничестве с предприятиями, вузами, организациями)"]
["Выполнение опытно-конструкторской работы","до 100 часов в год (работы по нефинансируемым договорам о научно-техническом сотрудничестве с предприятиями, вузами, организациями)"]
["Выступление  с докладом на научном семинаре кафедры","до 10 часов"]
["Выступление с докладом на конференции","до 20 часов"]
["Выступление с докладом на симпозиуме","до 20 часов"]
["Выступление с докладом на съезде","до 20 часов"]
["Выступление с докладом на ученом совете института","до 15 часов"]
["Выступление с докладом на ученом совете университета","до 15 часов"]
["Выступление с докладом на ученом совете факультета","до 15 часов"]
["Написание и подготовка для издательства монографии","150-200 час на 1 печатный лист (без гонорара)"]
["Написание и подготовка для издательства статьи","до 100  часов на 1 печ. Лист; депонированной - 50-70 часов за 1 печ.лист "]
["Написание и подготовка для издательства учебника","150-200 час на 1 печатный лист (без гонорара)"]
["Написание и подготовка для издательства учебного пособия","150-200 час на 1 печатный лист (без гонорара)"]
["Научно-техническое консультирование работников организации","по согласованию с зав. кафедрой"]
["Подготовка автореферата докторской диссертации;","до 80 часов"]
["Подготовка автореферата кандидатской диссертации","до 40 часов"]
["Подготовка доклада на всероссийскую конференцию","до 30 часов на один доклад"]
["Подготовка доклада на конференцию факультета","до 20 часов на один доклад"]
["Подготовка доклада на международную конференцию","до 30 часов на один доклад"]
["Подготовка доклада на методический семинар кафедры","до 5 часов на один доклад"]
["Подготовка доклада на региональную конференцию","до 30 часов на один доклад"]
["Подготовка докторской диссертации","по согласованию с зав. кафедрой"]
["Подготовка документации для проведения комплексной оценки","по согласованию с зав. кафедрой и руководством факультета, университета"]
["Подготовка документации к проведению внешнего аудита","по согласованию с зав. кафедрой и руководством факультета, университета"]
["Подготовка документации к проведению внутреннего аудита","по согласованию с зав. кафедрой и руководством факультета, университета"]
["Подготовка заявки на изобретение","до 50 -150 часов на одну заявку"]
["Подготовка кандидатской диссертации","по согласованию с зав. кафедрой"]
["Подготовка экспоната на выставку","40 – 60 часов на один экспонат"]
["Подготовка  доклада на международные конференции","до 40 часов на один доклад"]
["Подготовка  доклада на российские конференции","до 40 часов на один доклад"]
["Разработка должностной или рабочей инструкции","до 20 часов на одну инструкцию"]
["Разработка стандарта СМК","до 100 часов на один стандарт"]
["Редактирование учеб. пособия","до 5 часов на один печатный лист"]
["Редактирование учебника","до 5 часов на один печатный лист"]
["Рецензирование диссертации","до 10 часов на один печатный лист рецензируемого материала"]
["Рецензирование доклада","до 10 часов на один печатный лист рецензируемого материала"]
["Рецензирование конкурсных и других материалов","до 10 часов на один печатный лист рецензируемого материала"]
["Рецензирование монографии","до 10 часов на один печатный лист рецензируемого материала"]
["Рецензирование научной статьи","до 10 часов на один печатный лист рецензируемого материала"]
["Рецензирование учебника","до 10 часов на один печатный лист рецензируемого материала"]
["Рецензирование учебного пособия","до 10 часов на один печатный лист рецензируемого материала"]

{"sheet":"6_НИРС. ОМР ","index":5,"n_rows":147,"n_cols":10,"rows_kept":147,"cut":false,"hidden":false,"merged":[[55,0,55,1],[56,0,56,1],[54,0,54,1],[42,0,42,1],[44,0,44,1],[46,0,46,1],[48,0,48,1],[50,0,50,1],[52,0,52,1],[45,0,45,1],[47,0,47,1],[49,0,49,1],[51,0,51,1],[53,0,53,1],[0,0,0,4],[31,2,31,3],[31,4,32,4],[1,4,2,4],[29,0,29,1],[1,2,1,3],[30,0,30,4],[34,0,34,1],[36,0,36,1],[59,0,59,1],[1,0,2,0],[1,1,2,1],[31,0,32,1],[33,0,33,1],[35,0,35,1],[37,0,37,1],[39,0,39,1],[41,0,41,1],[43,0,43,1],[38,0,38,1],[40,0,40,1],[57,0,57,1],[58,0,58,1]]}
["IV. НАУЧНО-ИССЛЕДОВАТЕЛЬСКАЯ РАБОТА СТУДЕНТОВ",null,null,null,null,null,"Осталось распределить",{"$f":"'4_УЧ-МЕТ'!$I$1","v":0},"час",{"$f":"'4_УЧ-МЕТ'!$O$1","v":0}]
["Виды  работ","Ф.И.О. студента,  № группы","Затраты времени, час",null,"Отметка зав.каф. о выполнении"]
[null,null,"план","факт."]
[null,null,null,null,null,null,{"$f":"LOOKUP(A4,$A$100:$A$107,$B$100:$B$107)","v":0}]
[]
[null,null,null,null,null,null,{"$f":"LOOKUP(A6,$A$100:$A$107,$B$100:$B$107)","v":0}]
[]
[null,null,null,null,null,null,{"$f":"LOOKUP(A8,$A$100:$A$107,$B$100:$B$107)","v":0}]
[]
[null,null,null,null,null,null,{"$f":"LOOKUP(A10,$A$100:$A$107,$B$100:$B$107)","v":0}]
[]
[null,null,null,null,null,null,{"$f":"LOOKUP(A12,$A$100:$A$107,$B$100:$B$107)","v":0}]
[]
[null,null,null,null,null,null,{"$f":"LOOKUP(A14,$A$100:$A$107,$B$100:$B$107)","v":0}]
[]
[null,null,null,null,null,null,{"$f":"LOOKUP(A16,$A$100:$A$107,$B$100:$B$107)","v":0}]
[]
[null,null,null,null,null,null,{"$f":"LOOKUP(A18,$A$100:$A$107,$B$100:$B$107)","v":0}]
[]
[null,null,null,null,null,null,{"$f":"LOOKUP(A20,$A$100:$A$107,$B$100:$B$107)","v":0}]
[]
[null,null,null,null,null,null,{"$f":"LOOKUP(A22,$A$100:$A$107,$B$100:$B$107)","v":0}]
[]
[null,null,null,null,null,null,{"$f":"LOOKUP(A24,$A$100:$A$107,$B$100:$B$107)","v":0}]
[]
[null,null,null,null,null,null,{"$f":"LOOKUP(A26,$A$100:$A$107,$B$100:$B$107)","v":0}]
[]
[null,null,null,null,null,null,{"$f":"LOOKUP(A28,$A$100:$A$107,$B$100:$B$107)","v":0}]
[]
["Итого:",null,{"$f":"SUM(C4:C29)","v":0}]
["V. ОРГАНИЗАЦИОННО-МЕТОДИЧЕСКАЯ РАБОТА"]
["Виды работ",null,"Затраты времени, час",null,"Отметка зав.каф. о выполнении"]
[null,null,"план","факт."]
[null,null,null,null,null,null,{"$f":"LOOKUP(A34,$A$112:$A$147,$B$112:$B$147)","v":0}]
[]
[null,null,null,null,null,null,{"$f":"LOOKUP(A36,$A$112:$A$147,$B$112:$B$147)","v":0}]
[]
[null,null,null,null,null,null,{"$f":"LOOKUP(A38,$A$112:$A$147,$B$112:$B$147)","v":0}]
[]
[null,null,null,null,null,null,{"$f":"LOOKUP(A40,$A$112:$A$147,$B$112:$B$147)","v":0}]
[]
[null,null,null,null,null,null,{"$f":"LOOKUP(A42,$A$112:$A$147,$B$112:$B$147)","v":0}]
[]
[null,null,null,null,null,null,{"$f":"LOOKUP(A44,$A$112:$A$147,$B$112:$B$147)","v":0}]
[]
[null,null,null,null,null,null,{"$f":"LOOKUP(A46,$A$112:$A$147,$B$112:$B$147)","v":0}]
[]
[null,null,null,null,null,null,{"$f":"LOOKUP(A48,$A$112:$A$147,$B$112:$B$147)","v":0}]
[]
[null,null,null,null,null,null,{"$f":"LOOKUP(A50,$A$112:$A$147,$B$112:$B$147)","v":0}]
[]
[null,null,null,null,null,null,{"$f":"LOOKUP(A52,$A$112:$A$147,$B$112:$B$147)","v":0}]
[]
[null,null,null,null,null,null,{"$f":"LOOKUP(A54,$A$112:$A$147,$B$112:$B$147)","v":0}]
[]
[null,null,null,null,null,null,{"$f":"LOOKUP(A56,$A$112:$A$147,$B$112:$B$147)","v":0}]
[]
[null,null,null,null,null,null,{"$f":"LOOKUP(A58,$A$112:$A$147,$B$112:$B$147)","v":0}]
[]
["Итого:",null,{"$f":"SUM(C34:C59)","v":0}]
[]
[]
[]
[]
[]
[]
[]
[]
[]
[]
[]
[]
[]
[]
[]
[]
[]
[]
[]
[]
[]
[]
[]
[]
[]
[]
[]
[]
[]
[]
[]
[]
[]
[]
[]
[]
[]
[]
["Виды работ","Примерные нормы времени"]
[0,0]
["Выступление с докладом на конференции","до 25 часов в семестр (с представлением в текущем учебном году студентом)"]
["Выступление с докладом на симпозиуме","до 25 часов в семестр (с представлением в текущем учебном году студентом)"]
["Подготовка научной работы на конкурс","до 25 часов в семестр (с представлением в текущем учебном году студентом)"]
["Подготовка научной статьи","до 25 часов в семестр (с представлением в текущем учебном году студентом)"]
["Руководство НИРС (рефераты и прочее)","до 15 часов в семестр"]
["Руководство НИРС в кружке СНО","до 50 часов в год (по г/б тематике)"]
["Руководство НИРС в СКБ","до 100 часов в год"]
[]
[]
[]
["Виды работ","Примерные нормы времени"]
[0,0]
["Декан факультета","200 часов"]
["Зам Декана факультета","100- 300 часов"]
["Зам. Зав. кафедрой по учебной работе","при числе преподавателей 10 чел - 30 часов; 11-20 чел -- 60 часов; свыше 20 чел - 90 часов "]
["Зам. Отв. Секретаря приемной комиссии","200 – 600 часов год"]
["Зам. Председателя совета по защите диссертаций","до 50 часов в год на один совет"]
["Замдекана на общественных началах","100-300 час. в год"]
["Ответств. секретарь приемной комиссии","300 – 700 часов год"]
["Ответственный за воспитательную работу","до 50 часов в год (По согласованию с зав. Кафедрой)"]
["Ответственный за документацию СМК","до 60 часов в год (По согласованию с зав. Кафедрой)"]
["Ответственный за ДП и ВКР","до 50 часов в год (По согласованию с зав. Кафедрой)"]
["Ответственный за курсовое проектирование","по согласованию с зав. кафедрой"]
["Ответственный за научную работу на кафедре","при числе преподавателей 10 чел - 30 часов; 11-20 чел -- 60 часов; свыше 20 чел - 90 часов "]
["Ответственный за организацию практик","до 70 часов в год (По согласованию с зав. Кафедрой)"]
["Ответственный по кафедре за НИРС","до 70 часов в год (По согласованию с зав. Кафедрой)"]
["Председатель совета по защите диссертаций","до 60 часов в год на один совет"]
["Профориентационная работа","по решению кафедры"]
["Работа в методической комиссии факультета","по согласованию с зав. кафедрой и руководством факультета"]
["Работа в НМС Минобразования","по согласованию с зав. кафедрой"]
["Работа в отборочной комиссии факультета","50 – 100 часов год"]
["Работа в редколлегиях научных журналов","по согласованию с зав. кафедрой"]
["Работа в УМО  Минобразования","по согласованию с зав. кафедрой"]
["Работа куратором специальности","до 50 часов в год (По согласованию с зав. Кафедрой)"]
["Руководитель секции НМС ТулГУ","до 100 часов год"]
["Руководство кафедрой","Штатному заведующему 80 часов в год при числе преподавателей 50 и более; 65 часов при числе преподавателей от 31 до 49; 50 часов при числе преподавателей 30 и менее"]
["Сотрудник приемной комиссии","6 часов за один рабочий день."]
["Уполномоченнй по качеству факультета","до 100 часов в год"]
["Участие в заседаниях кафедры и НМС","до 40 часов в год (По согласованию с зав. Кафедрой)"]
["Ученый секретарь совета по защите диссертаций","до 80 часов в год на один совет"]
["Ученый секретарь Совета университета","до 50 часов в год"]
["Ученый секретарь Совета факультета","до 50 часов в год"]
["Член НМС университета;","до 20 часов в год"]
["Член НТС университета","до 20 часов в год"]
["Член совета по защите диссертаций","до 30 часов в год на один совет"]
["Член Совета факультета","до 30 часов в год"]
["Член Ученого совета университета","до 60 часов в год"]

{"sheet":"7_РВС ПК","index":6,"n_rows":117,"n_cols":10,"rows_kept":117,"cut":false,"hidden":false,"merged":[[53,0,53,4],[54,0,54,4],[59,0,59,4],[55,0,55,4],[56,0,56,4],[57,0,57,4],[58,0,58,4],[49,0,49,4],[50,0,50,4],[51,0,51,4],[52,0,52,4],[45,0,45,4],[46,0,46,4],[47,0,47,4],[48,0,48,4],[41,0,41,4],[42,0,42,4],[43,0,43,4],[44,0,44,4],[35,0,35,1],[36,0,36,1],[39,0,39,4],[40,0,40,4],[38,0,38,4],[15,0,15,1],[21,0,21,1],[25,0,25,1],[22,0,22,1],[23,0,23,1],[24,0,24,1],[16,0,16,1],[19,2,19,3],[19,4,20,4],[19,0,20,1],[37,0,37,1],[13,0,13,1],[33,0,33,1],[30,0,30,1],[31,0,31,1],[29,0,29,1],[26,0,26,1],[17,0,17,1],[18,0,18,4],[27,0,27,1],[28,0,28,1],[32,0,32,1],[34,0,34,1],[12,0,12,1],[14,0,14,1],[9,0,9,1],[1,2,1,3],[1,4,2,4],[3,0,3,1],[4,0,4,1],[5,0,5,1],[7,0,7,1],[6,0,6,1],[0,0,0,4],[1,0,2,1],[8,0,8,1],[10,0,10,1],[11,0,11,1]]}
["VI.  РАБОТА ПО ВОСПИТАНИЮ СТУДЕНТОВ",null,null,null,null,null,"Осталось распределить",{"$f":"'4_УЧ-МЕТ'!$I$1","v":0},"час",{"$f":"'4_УЧ-МЕТ'!$O$1","v":0}]
["Виды работ",null,"Затраты времени, час",null,"Отметка зав.каф. о выполнении"]
[null,null,"план","факт."]
["Информационно-воспитательная работа",null,null,null,null,null,{"$f":"LOOKUP(A4,$A$98:$A$103,$B$98:$B$103)","v":"По согласованию с зав. кафедрой"}]
[]
[0,null,null,null,null,null,{"$f":"LOOKUP(A6,$A$98:$A$103,$B$98:$B$103)","v":0}]
[]
[0,null,null,null,null,null,{"$f":"LOOKUP(A8,$A$98:$A$103,$B$98:$B$103)","v":0}]
[]
[0,null,null,null,null,null,{"$f":"LOOKUP(A10,$A$98:$A$103,$B$98:$B$103)","v":0}]
[]
[0,null,null,null,null,null,{"$f":"LOOKUP(A12,$A$98:$A$103,$B$98:$B$103)","v":0}]
[]
[0,null,null,null,null,null,{"$f":"LOOKUP(A14,$A$98:$A$103,$B$98:$B$103)","v":0}]
[]
[0,null,null,null,null,null,{"$f":"LOOKUP(A16,$A$98:$A$103,$B$98:$B$103)","v":0}]
[]
["Итого",null,{"$f":"SUM(C4:C17)","v":0}]
["VII. ПОВЫШЕНИЕ КВАЛИФИКАЦИИ"]
["Форма повышения квалификации, место и сроки",null,"Затраты времени, час",null,"Отметка зав.каф. о выполнении"]
[null,null,"план","факт."]
["Повышение квалификации (заочное)",null,null,null,null,null,{"$f":"LOOKUP(A22,$A$106:$A$117,$B$106:$B$117)","v":"в объеме установленной программы обучения"}]
[]
[]
[]
["Стажировка",null,null,null,null,null,{"$f":"LOOKUP(A26,$A$106:$A$117,$B$106:$B$117)","v":"В г. Тула - до 100 часов в месяц; в другом городе - до 150 часов в месяц (на производственном предприятии, в вузе или какой-либо другой организации)"}]
[]
[]
[]
[null,null,null,null,null,null,{"$f":"LOOKUP(A30,$A$106:$A$117,$B$106:$B$117)","v":0}]
[]
[]
[]
[null,null,null,null,null,null,{"$f":"LOOKUP(A34,$A$106:$A$117,$B$106:$B$117)","v":0}]
[]
[]
[]
["Итого",null,{"$f":"SUM(C22:C37)","v":0}]
["VIII. РЕКОМЕНДАЦИИ КАФЕДРЫ ПО ОТЧЕТУ ПРЕПОДАВАТЕЛЯ"]
[]
[]
[]
[]
[]
[]
[]
[]
[]
[]
[]
[]
[]
[]
[]
[]
[]
[]
[]
[]
[]
[]
[]
[]
[]
[]
[]
[]
[]
[]
[]
[]
[]
[]
[]
[]
[]
[]
[]
[]
[]
[]
[]
[]
[]
[]
[]
[]
[]
[]
[]
[]
[]
[]
[]
[]
[]
["Виды работ","Примерные нормы времени"]
[0,0]
["Информационно-воспитательная работа","По согласованию с зав. кафедрой"]
["Организация и проведение спортивных мероприятий","По согласованию с зав. кафедрой"]
["Проведение мероприятий воспитательного характера","По согласованию с зав. кафедрой"]
["Работа куратором группы","50-100 час. в год"]
["Работа со студенческим активом","По согласованию с зав. кафедрой"]
[]
["Виды работ","Примерные нормы времени"]
[0,0]
["Защита докторской диссертации в порядке соискательства","до 80 часов - в порядке соискательства (вне докторантуры, аспирантуры)"]
["Защита кандидатской диссертации в порядке соискательства","до 70 часов - в порядке соискательства (вне докторантуры, аспирантуры)"]
["Изучение нового оборудования, установок и т.д.","По согласованию с зав. кафедрой (на предприятиях, в вузах, научно-исследовательских, конструкторских и проектных организациях)"]
["Изучение передовых методов исследований","По согласованию с зав. кафедрой (на предприятиях, в вузах, научно-исследовательских, конструкторских и проектных организациях)"]
["Изучение передовых технологических процессов","По согласованию с зав. кафедрой (на предприятиях, в вузах, научно-исследовательских, конструкторских и проектных организациях)"]
["Обучение на заочном отделении другого вуза","в объеме установленной программы обучения, согласованной с зав. кафедрой"]
["Повышение квалификации (заочное)","в объеме установленной программы обучения"]
["Повышение квалификации (очное)","в объеме установленной программы обучения"]
["Стажировка","В г. Тула - до 100 часов в месяц; в другом городе - до 150 часов в месяц (на производственном предприятии, в вузе или какой-либо другой организации)"]
["Участие в международных конференицях","в соответствии с программой конференции"]
["Участие в обучающих семинарах","в объеме установленной программы обучения"]

{"sheet":"8_ОРИП ОПВП","index":7,"n_rows":65,"n_cols":6,"rows_kept":65,"cut":false,"hidden":false,"merged":[[45,1,45,2],[39,1,39,2],[40,1,40,2],[41,1,41,2],[42,1,42,2],[37,1,37,2],[38,1,38,2],[43,1,43,2],[44,1,44,2],[31,0,31,1],[34,1,34,2],[35,1,35,2],[36,1,36,2],[27,0,27,1],[28,0,28,1],[29,0,29,1],[30,0,30,1],[23,0,23,1],[24,0,24,1],[25,0,25,1],[26,0,26,1],[19,0,19,1],[20,0,20,1],[21,0,21,1],[22,0,22,1],[15,0,15,1],[16,0,16,1],[18,0,18,1],[17,0,17,1],[11,0,11,1],[12,0,12,1],[13,0,13,1],[14,0,14,1],[2,0,2,1],[3,0,3,1],[4,0,4,1],[59,1,59,2],[46,1,46,3],[47,1,47,3],[50,1,50,3],[51,1,51,3],[55,1,55,3],[56,1,56,3],[58,1,58,2],[0,0,0,3],[33,1,33,2],[32,0,32,3],[57,1,57,3],[52,1,52,3],[53,1,53,2],[54,1,54,2],[48,1,48,2],[49,1,49,2],[1,0,1,1],[5,0,5,1],[6,0,6,1],[7,0,7,1],[8,0,8,1],[9,0,9,1],[10,0,10,1]]}
["IX. ИЗМЕНЕНИЕ РАЗДЕЛОВ ИНДИВИДУАЛЬНОГО ПЛАНА"]
["Вводимые изменения",null,"Раздел плана","№ протокола заседания кафедры, дата"]
[]
[]
[]
[]
[]
[]
[]
[]
[]
[]
[]
[]
[]
[]
[]
[]
[]
[]
[]
[]
[]
[]
[]
[]
[]
[]
[]
[]
[]
[]
["ОТМЕТКИ О ПРОВЕРКЕ ВЫПОЛНЕНИЯ ПЛАНА"]
["Замечания","Фамилия, И.О., должность проверяющего",null,"Подпись преподавателя"]
[]
[]
[]
[]
[]
[]
[]
[]
[]
[]
[]
[]
[null,"План обсужден на заседании кафедры"]
[null,"____ __________2022 г.       протокол №  ______"]
[null,"Заведующий кафедрой"]
[null,"Подпись преподавателя"]
[null,"Выполнение плана в осеннем семестре проверено"]
[null,"и обсуждено на заседании кафедры"]
[null,"____ __________2025 г.       протокол №  ______"]
[null,"Заведующий кафедрой"]
[null,"Подпись преподавателя"]
[null,"Выполнение плана в весеннем семестре  и за уч. год "]
[null,"проверено и обсуждено на заседании кафедры"]
[null,"____ __________2025 г.       протокол №  ______"]
[null,"Заведующий кафедрой"]
[null,"Подпись преподавателя"]
[]
[]
[]
[]
[null,null,null,null,null," "]